bitfinex-derivatives/quotes_SOLF0:USTF0_20250817
["timestamp","ask_amount","ask_price","bid_price","bid_amount"]
[1755466380382,6.81259325,191.2,191.17,2.84]
[1755466380581,3.96259325,191.19,191.17,2.84]
[1755466380776,5.84375388,191.25,191.17,2.84]
[1755466380975,2.85,191.19,191.17,2.84]
[1755466382884,2.85,191.17,191.16,2.84]
[1755466383076,6.81209406,191.17,191.16,2.84]
[1755466387391,6.81613451,191.17,191.16,2.84]
[1755466387688,2.85,191.17,191.16,2.84]
[1755466387891,6.81613451,191.17,191.16,2.84]
[1755466388688,3.96613451,191.17,191.16,2.84]
[1755466390492,6.81613451,191.17,191.16,2.84]
[1755466392792,3.96613451,191.17,191.16,2.84]
[1755466394293,6.81613451,191.17,191.16,2.84]
[1755466397900,3.96613451,191.17,191.16,2.84]
[1755466400897,6.74613451,191.17,191.16,2.84]
[1755466410704,3.96613451,191.17,191.16,2.84]
[1755466418014,6.74613451,191.17,191.16,2.84]
[1755466420912,2.78,191.15,191.14,3.02]
[1755466421109,6.74613451,191.15,191.14,3.02]
[1755466421903,3.96613451,191.15,191.11,3.02]
[1755466422111,6.74613451,191.14,191.11,3.02]
[1755466422303,6.74613451,191.13,191.11,3.02]
[1755466422507,3.96613451,191.12,191.11,3.02]
[1755466423210,6.74613451,191.12,191.11,3.02]
[1755466423411,3.96613451,191.12,191.11,3.02]
[1755466428209,3.97388087,191.12,191.11,3.02]
[1755466428914,2.85,191.15,191.11,3.02]
[1755466429115,3.97353022,191.14,191.11,3.02]
[1755466429314,3.97353022,191.13,191.11,3.02]
[1755466429514,3.97353022,191.12,191.11,3.02]
[1755466433316,6.82353022,191.12,191.11,3.02]
[1755466433819,3.97353022,191.12,191.09,1.57231945]
[1755466434017,6.82353022,191.11,191.1,2.84]
[1755466438522,2.85,191.14,191.1,2.84]
[1755466438725,3.96897659,191.13,191.1,2.84]
[1755466438924,6.81897659,191.12,191.1,2.84]
[1755466439121,2.85,191.12,191.1,2.84]
[1755466439623,2.85,191.14,191.1,2.84]
[1755466439812,3.96866337,191.13,191.1,2.84]
[1755466440017,3.96866337,191.12,191.1,2.84]
[1755466440218,2.85,191.13,191.1,2.84]
[1755466440415,6.81866337,191.12,191.1,2.84]
[1755466440715,2.85,191.14,191.1,2.84]
[1755466440921,3.96860719,191.13,191.1,2.84]
[1755466441123,6.81860719,191.12,191.1,2.84]
[1755466441323,3.96860719,191.11,191.1,2.84]
[1755466442932,3.96860719,191.11,191.09,1.57231945]
[1755466443131,2.85,191.1,191.09,2.84]
[1755466443431,1.57231945,191.15,191.08,2.84]
[1755466443632,2.85,191.12,191.08,2.84]
[1755466443833,2.85,191.1,191.08,2.84]
[1755466444231,2.85,191.09,191.08,2.84]
[1755466450940,2.85,191.1,191.08,2.84]
[1755466455242,2.85,191.1,191.06,6.80281945]
[1755466455543,2.85,191.12,191.07,2.84]
[1755466455742,2.85,191.1,191.07,2.84]
[1755466458946,2.83,191.09,191.07,2.84]
[1755466459545,2.83,191.1,191.07,2.84]
[1755466460144,1.57231945,191.13,191.07,2.84]
[1755466460444,2.83,191.1,191.07,2.84]
[1755466461447,3.9754791,191.09,191.07,2.84]
[1755466461745,2.83,191.1,191.07,2.84]
[1755466461947,3.97530558,191.09,191.07,2.84]
[1755466462143,2.83,191.12,191.07,2.84]
[1755466462343,2.83,191.1,191.07,2.84]
[1755466462544,6.80541936,191.09,191.07,2.84]
[1755466462743,2.83,191.09,191.07,2.84]
[1755466468547,3.9785597,191.08,191.07,2.84]
[1755466477356,2.83,191.1,191.07,2.84]
[1755466477659,3.97394616,191.09,191.07,2.84]
[1755466477861,2.83,191.1,191.07,2.84]
[1755466478058,3.97394616,191.09,191.07,2.84]
[1755466478260,2.83,191.1,191.07,2.84]
[1755466478460,3.97427365,191.09,191.07,2.84]
[1755466478657,2.83,191.1,191.07,2.84]
[1755466478857,3.97408896,191.09,191.07,2.84]
[1755466479060,2.83,191.1,191.07,2.84]
[1755466479258,3.97404015,191.09,191.07,2.84]
[1755466479459,2.83,191.1,191.07,2.84]
[1755466479658,3.97432563,191.09,191.07,2.84]
[1755466479859,2.83,191.15,191.09,2.81]
[1755466480060,2.83,191.13,191.09,2.81]
[1755466480360,6.80469679,191.12,191.09,2.81]
[1755466480550,3.97469679,191.11,191.09,2.81]
[1755466480752,3.97469679,191.1,191.09,2.81]
[1755466482159,3.97469679,191.1,191.09,8.0397]
[1755466482558,3.97469679,191.1,191.09,2.81]
[1755466482852,6.80469679,191.1,191.09,2.81]
[1755466483064,3.97469679,191.1,191.09,2.81]
[1755466485960,3.97369811,191.1,191.09,2.81]
[1755466491767,3.97369811,191.1,191.09,8.0397]
[1755466495666,3.97369811,191.1,191.09,9.61201945]
[1755466498570,2.98,191.12,191.09,6.80201945]
[1755466498772,6.95301367,191.11,191.1,2.9]
[1755466504772,3.97301367,191.11,191.1,2.9]
[1755466504973,2.98,191.14,191.1,2.9]
[1755466505177,2.98,191.14,191.13,1.57231945]
[1755466505368,2.98,191.19,191.13,4.47231945]
[1755466505571,2.98,191.17,191.14,2.9]
[1755466507474,2.98,191.17,191.15,2.9]
[1755466510679,2.98,191.17,191.16,2.9]
[1755466513082,5.84375388,191.22,191.16,2.9]
[1755466513083,2.98,191.19,191.16,2.9]
[1755466513982,2.98,191.19,191.17,2.9]
[1755466516880,3.94558024,191.18,191.17,2.9]
[1755466517082,6.92558024,191.18,191.17,2.9]
[1755466525489,3.94558024,191.18,191.17,2.9]
[1755466525689,3.94558024,191.18,191.17,1.57231945]
[1755466525889,3.94558024,191.18,191.17,4.54231945]
[1755466526985,3.94558024,191.18,191.17,9.76991945]
[1755466527191,351.42,191.26,191.18,2.97]
[1755466527192,2.91,191.24,191.18,2.97]
[1755466527392,6.85582574,191.23,191.21,2.97]
[1755466527594,3.94582574,191.22,191.21,2.97]
[1755466531393,3.94582574,191.22,191.21,8.1965]
[1755466531791,3.94582574,191.22,191.21,9.76881945]
[1755466533396,2.91,191.25,191.22,2.97]
[1755466533597,6.85009108,191.24,191.22,2.97]
[1755466533893,3.94009108,191.23,191.22,2.97]
[1755466535593,2.91,191.26,191.22,2.97]
[1755466535898,3.938222,191.25,191.24,4.54231945]
[1755466536592,6.848222,191.25,191.24,4.54231945]
[1755466537196,3.938222,191.25,191.24,4.54231945]
[1755466537396,2.91,191.26,191.24,1.57231945]
[1755466537596,2.91,191.26,191.25,2.97]
[1755466537796,6.84978257,191.26,191.25,2.97]
[1755466538799,3.93978257,191.26,191.25,2.97]
[1755466539601,6.84978257,191.26,191.25,2.97]
[1755466540304,3.93978257,191.26,191.25,8.1954]
[1755466540802,3.93978257,191.26,191.25,2.97]
[1755466541494,2.91,191.28,191.25,8.1954]
[1755466541695,3.93657804,191.27,191.26,4.54231945]
[1755466547811,2.9,191.3,191.26,1.57231945]
[1755466548013,2.9,191.33,191.3,2.94]
[1755466548204,2.9,191.31,191.3,2.94]
[1755466548405,6.83564848,191.31,191.3,2.94]
[1755466548811,6.83564848,191.31,191.28,1.57231945]
[1755466549011,6.83564848,191.3,191.29,2.94]
[1755466560218,3.93564848,191.3,191.26,1.57231945]
[1755466560420,6.83455303,191.29,191.28,2.94]
[1755466562420,3.93455303,191.29,191.28,4.51231945]
[1755466563428,6.83455303,191.29,191.28,4.51231945]
[1755466567432,6.83455303,191.29,191.26,4.51231945]
[1755466567732,6.83455303,191.28,191.27,2.94]
[1755466568936,6.83944416,191.28,191.27,2.94]
[1755466569833,3.93944416,191.28,191.27,2.94]
[1755466575036,3.93944416,191.28,191.27,4.51231945]
[1755466577844,6.71944416,191.28,191.27,4.51231945]
[1755466578739,6.73144887,191.28,191.27,4.51231945]
[1755466581840,3.95144887,191.28,191.27,4.51231945]
[1755466582343,3.95144887,191.28,191.27,2.94]
[1755466582546,3.95144887,191.28,191.27,4.51231945]
[1755466600062,3.95144887,191.28,191.27,2.94]
[1755466600262,3.95144887,191.28,191.27,4.51231945]
[1755466604362,2.78,191.32,191.28,2.93]
[1755466604566,2.78,191.32,191.31,4.50231945]
[1755466609478,2.78,191.32,191.31,2.93]
[1755466609671,2.78,191.32,191.28,1.57231945]
[1755466609872,2.78,191.32,191.29,3.01]
[1755466610570,2.78,191.32,191.13,362.84117183]
[1755466610571,0.52,191.31,191.05,11.64117183]
[1755466610872,2.97,191.14,191.09,3.01]
[1755466611379,2.97,191.12,191.09,3.01]
[1755466611877,2.97,191.12,191.1,1.57231945]
[1755466612272,2.97,191.12,191.09,3.01]
[1755466613779,18.65,191.2,191.07,3.01]
[1755466613979,2.97,191.18,191.07,3.01]
[1755466614182,2.97,191.16,191.07,3.01]
[1755466614373,2.97,191.14,191.07,3.01]
[1755466616374,4.23590364,191.13,191.07,3.01]
[1755466616575,2.97,191.12,191.07,3.01]
[1755466622284,2.97,191.11,191.07,3.01]
[1755466622485,2.97,191.1,191.07,3.01]
[1755466629187,2.97,191.09,191.07,3.01]
[1755466630392,2.97,191.18,191.07,3.01]
[1755466630579,2.97,191.16,191.07,3.01]
[1755466630784,2.97,191.14,191.07,3.01]
[1755466631088,2.97,191.12,191.07,3.01]
[1755466632293,2.97,191.12,191.06,2.45826062]
[1755466632592,2.97,191.11,191.09,3.01]
[1755466636292,2.97,191.11,191.1,1.57330138]
[1755466636490,7.21616151,191.11,191.1,4.58330138]
[1755466638989,7.21616151,191.11,191.1,3.01]
[1755466640692,4.24616151,191.11,191.09,6.80280138]
[1755466640995,1.57330138,191.18,191.09,1.57330138]
[1755466641196,3.02,191.16,191.1,2.92]
[1755466641397,3.02,191.14,191.11,2.92]
[1755466641594,3.02,191.12,191.11,2.92]
[1755466641792,12.39223064,191.12,191.11,2.92]
[1755466643292,12.39223064,191.12,191.11,4.49330138]
[1755466643487,12.39458424,191.12,191.11,4.49330138]
[1755466646192,7.27038575,191.12,191.11,4.49330138]
[1755466646397,12.40181524,191.12,191.11,4.49330138]
[1755466648501,7.27038575,191.12,191.11,4.49330138]
[1755466650301,12.19101595,191.12,191.11,4.49330138]
[1755466651405,12.19101595,191.12,191.11,2.92]
[1755466654105,21.16837753,191.12,191.11,2.92]
[1755466654302,15.32462365,191.12,191.11,2.92]
[1755466654505,15.32477594,191.12,191.11,2.92]
[1755466655097,15.32477594,191.12,191.09,1.57330138]
[1755466655394,3.02,191.1,191.09,1.57330138]
[1755466655600,15.38389528,191.1,191.09,1.57330138]
[1755466656102,15.38384235,191.1,191.09,1.57330138]
[1755466657306,15.38384235,191.1,191.09,4.49330138]
[1755466660209,12.2379952,191.1,191.09,4.49330138]
[1755466661711,12.2379952,191.1,191.09,2.92]
[1755466664309,7.27038575,191.1,191.09,2.92]
[1755466669314,4.25038575,191.1,191.09,2.92]
[1755466669513,7.08038575,191.1,191.09,2.92]
[1755466669916,4.25038575,191.1,191.08,1.57330138]
[1755466670116,7.08038575,191.09,191.08,4.36330138]
[1755466680123,7.08038575,191.09,191.08,1.57330138]
[1755466680518,2.83,191.08,191.07,4.36330138]
[1755466680719,2.83,191.1,191.08,2.79]
[1755466680923,4.7282413,191.09,191.08,4.36330138]
[1755466681227,10.66334942,191.09,191.08,1.57330138]
[1755466681429,2.83,191.08,191.07,1.57330138]
[1755466681628,7.5582413,191.08,191.07,1.57330138]
[1755466682330,2.83,191.11,191.07,1.57330138]
[1755466682532,2.83,191.09,191.07,1.57330138]
[1755466684227,2.83,191.08,191.07,4.36330138]
[1755466687031,5.84897855,191.15,191.08,2.79]
[1755466687231,2.83,191.13,191.1,2.79]
[1755466687430,4.69523009,191.12,191.1,2.79]
[1755466687625,2.83,191.11,191.1,2.79]
[1755466688835,7.52511888,191.11,191.1,2.79]
[1755466689036,4.69511888,191.11,191.09,4.36330138]
[1755466689235,2.83,191.1,191.09,4.36330138]
[1755466692335,2.83,191.14,191.09,1.57330138]
[1755466692535,2.83,191.12,191.1,2.79]
[1755466692735,4.10599535,191.11,191.1,2.79]
[1755466693036,6.93599535,191.11,191.1,2.79]
[1755466694441,11.63070002,191.11,191.1,2.79]
[1755466694838,11.63070336,191.11,191.1,2.79]
[1755466695438,8.80070336,191.11,191.1,2.79]
[1755466695743,11.63070336,191.11,191.1,2.79]
[1755466699545,11.63070336,191.11,191.09,1.57330138]
[1755466699846,7.12599535,191.1,191.09,4.43330138]
[1755466706245,4.10599535,191.1,191.09,4.43330138]
[1755466707548,7.12599535,191.1,191.09,4.43330138]
[1755466708153,4.10599535,191.1,191.09,1.57330138]
[1755466708354,7.12599535,191.1,191.09,4.43330138]
[1755466710460,4.10599535,191.1,191.09,4.43330138]
[1755466711056,3.02,191.15,191.09,4.43330138]
[1755466711358,3.02,191.15,191.14,4.43330138]
[1755466716756,3.02,191.19,191.15,2.86]
[1755466717054,3.02,191.17,191.16,4.43330138]
[1755466723067,7.09290091,191.17,191.16,4.43330138]
[1755466730682,4.07290091,191.17,191.16,4.43330138]
[1755466730873,7.00290091,191.17,191.16,4.43330138]
[1755466739080,4.07290091,191.17,191.16,4.43330138]
[1755466739386,7.00290091,191.17,191.16,4.43330138]
[1755466748178,7.00290091,191.17,191.16,9.66110138]
[1755466748783,4.07290091,191.17,191.16,9.66110138]
[1755466750289,2.93,191.25,191.19,2.86]
[1755466750483,2.93,191.23,191.21,2.86]
[1755466750682,7.00507802,191.22,191.21,2.86]
[1755466768798,2.94,191.21,191.2,4.50330138]
[1755466768998,7.01507802,191.21,191.2,4.50330138]
[1755466776202,2.94,191.2,191.16,2.93]
[1755466776404,2.94,191.18,191.16,2.93]
[1755466776600,4.07507802,191.17,191.15,1.57330138]
[1755466776799,7.01507802,191.16,191.15,1.57330138]
[1755466777199,7.01507802,191.16,191.15,4.50330138]
[1755466779805,7.01507802,191.16,191.15,2.93]
[1755466787911,7.01507802,191.16,191.15,4.50330138]
[1755466800210,2.86,191.22,191.15,1.57330138]
[1755466800413,2.86,191.2,191.18,1.57330138]
[1755466800715,4.07460694,191.19,191.18,4.47330138]
[1755466801114,2.86,191.2,191.18,4.47330138]
[1755466801417,8.70897855,191.27,191.19,2.9]
[1755466801619,2.86,191.25,191.22,2.9]
[1755466801912,2.86,191.23,191.21,4.47330138]
[1755466802109,6.93362722,191.22,191.21,4.47330138]
[1755466805521,2.86,191.21,191.17,1.57330138]
[1755466805821,2.86,191.19,191.17,1.57330138]
[1755466806014,4.07362722,191.18,191.17,1.57330138]
[1755466806221,6.93362722,191.18,191.17,1.57330138]
[1755466808818,6.93362722,191.18,191.17,4.47330138]
[1755466825028,6.92141489,191.18,191.17,4.47330138]
[1755466825530,6.98141489,191.18,191.17,4.47330138]
[1755466827236,6.98141489,191.18,191.17,9.70090138]
[1755466831241,4.06141489,191.18,191.17,9.70090138]
[1755466834239,2.92,191.2,191.18,5.2271]
[1755466834437,2.92,191.2,191.19,4.64330138]
[1755466834637,6.98165689,191.2,191.19,4.64330138]
[1755466835236,6.98165689,191.2,191.19,9.87030138]
[1755466835433,5.84897855,191.28,191.19,1.57330138]
[1755466835741,2.92,191.23,191.22,4.64330138]
[1755466835935,4.06197102,191.23,191.22,1.57330138]
[1755466836233,6.98197102,191.23,191.22,1.57330138]
[1755466836434,6.98197102,191.23,191.22,4.64330138]
[1755466839841,6.98197102,191.23,191.22,9.86950138]
[1755466840041,4.06197102,191.23,191.22,9.86950138]
[1755466845243,2.92,191.23,191.22,9.86950138]
[1755466845542,2.92,191.3,191.23,8.2958]
[1755466845740,2.92,191.28,191.25,1.57330138]
[1755466845941,4.05119927,191.27,191.25,1.57330138]
[1755466846142,6.97119927,191.26,191.25,4.64330138]
[1755466853046,4.05119927,191.26,191.25,4.64330138]
[1755466853446,6.92119927,191.26,191.25,4.64330138]
[1755466854850,6.92119927,191.26,191.25,1.57330138]
[1755466855943,6.92119927,191.26,191.24,2.99]
[1755466856140,1.57330138,191.31,191.24,2.99]
[1755466856141,6.92119927,191.25,191.24,2.99]
[1755466858552,2.87,191.24,191.23,4.56330138]
[1755466860158,2.87,191.3,191.23,1.57330138]
[1755466860356,2.87,191.28,191.23,1.57330138]
[1755466860553,2.87,191.26,191.23,4.56330138]
[1755466860754,2.87,191.24,191.23,1.57330138]
[1755466861260,2.87,191.24,191.23,4.56330138]
[1755466864156,6.92032556,191.24,191.23,4.56330138]
[1755466872268,6.92032556,191.24,191.23,2.99]
[1755466872469,6.92032556,191.24,191.22,5.2262]
[1755466872470,2.87,191.23,191.2,4.56330138]
[1755466872672,5.84897855,191.28,191.2,4.56330138]
[1755466872673,2.87,191.21,191.2,4.56330138]
[1755466872872,6.92032556,191.21,191.2,4.56330138]
[1755466873276,6.92032556,191.21,191.2,1.57330138]
[1755466873471,2.87,191.2,191.17,1.57330138]
[1755466873677,2.87,191.18,191.15,1.57330138]
[1755466873981,2.87,191.16,191.11,1.57330138]
[1755466874165,4.05032556,191.17,190.99,351.24]
[1755466874166,2.87,191.14,191.1,4.56330138]
[1755466874474,2.87,191.12,191.11,2.99]
[1755466874672,6.92032556,191.12,191.11,2.99]
[1755466874868,2.87,191.11,191.09,2.99]
[1755466875065,2.87,191.11,191.07,4.56330138]
[1755466875778,2.87,191.16,191.1,2.99]
[1755466875978,2.87,191.14,191.11,4.56330138]
[1755466876674,2.87,191.14,191.09,4.56330138]
[1755466876878,2.87,191.12,191.07,1.57330138]
[1755466877074,2.87,191.1,191.07,4.56330138]
[1755466877877,2.87,191.1,191.07,2.99]
[1755466878177,2.87,191.1,191.07,4.56330138]
[1755466878474,2.87,191.1,191.08,2.79]
[1755466878674,2.87,191.1,191.09,1.57330138]
[1755466880975,2.87,191.1,191.08,2.79]
[1755466881179,2.87,191.1,191.09,1.57330138]
[1755466882083,2.87,191.1,191.09,4.36330138]
[1755466886088,2.87,191.17,191.09,4.36330138]
[1755466886283,2.87,191.17,191.13,4.36330138]
[1755466886481,478.12,191.24,191.15,1.57330138]
[1755466886482,2.87,191.16,191.15,1.57330138]
[1755466886786,2.87,191.23,191.16,2.79]
[1755466886988,2.87,191.21,191.18,4.36330138]
[1755466887184,2.87,191.21,191.16,1.57330138]
[1755466887685,2.87,191.21,191.16,4.36330138]
[1755466888483,2.87,191.21,191.16,2.79]
[1755466891893,2.87,191.21,191.17,2.79]
[1755466892491,4.03472333,191.2,191.13,5.2286]
[1755466892691,2.87,191.19,191.16,2.79]
[1755466896394,2.87,191.19,191.17,2.79]
[1755466899186,18.55,191.23,191.13,2.79]
[1755466899394,2.87,191.21,191.13,2.79]
[1755466899590,4.01505855,191.2,191.13,2.79]
[1755466899790,6.88505855,191.19,191.13,2.79]
[1755466900090,2.87,191.18,191.13,2.79]
[1755466905497,2.87,191.22,191.02,2.79]
[1755466905698,2.87,191.19,191.1,2.79]
[1755466906000,2.87,191.17,191.1,2.79]
[1755466906199,4.01832205,191.16,191.1,2.79]
[1755466906396,2.87,191.14,191.1,2.79]
[1755466907098,2.87,191.14,191.11,2.79]
[1755466909200,2.87,191.14,191.09,2.45666378]
[1755466909401,2.87,191.14,191.12,2.84]
[1755466909899,2.87,191.14,191.1,2.84]
[1755466910401,2.87,191.14,191.11,2.84]
[1755466910603,1.57334995,191.16,191.1,2.84]
[1755466910604,2.91,191.13,191.1,2.84]
[1755466910904,2.91,191.12,191.1,2.84]
[1755466911297,2.91,191.12,191.11,2.84]
[1755466912703,5.84897855,191.23,191.12,2.84]
[1755466912902,2.91,191.21,191.2,2.84]
[1755466913102,6.93461236,191.21,191.2,2.84]
[1755466913305,4.02461236,191.21,191.2,2.84]
[1755466913905,6.93461236,191.21,191.2,2.84]
[1755466914499,2.91,191.2,191.19,4.41334995]
[1755466914806,2.91,191.2,191.19,2.84]
[1755466914807,6.93461236,191.2,191.19,2.84]
[1755466917708,6.93461236,191.2,191.18,2.84]
[1755466918009,2.91,191.18,191.17,2.84]
[1755466918200,4.02461236,191.18,191.13,2.84]
[1755466918400,4.02461236,191.17,191.13,2.84]
[1755466918598,6.93461236,191.16,191.13,2.84]
[1755466918804,4.02461236,191.15,191.13,2.84]
[1755466919005,2.91,191.16,191.13,2.84]
[1755466919205,4.03513602,191.15,191.13,2.84]
[1755466919405,2.91,191.16,191.13,2.84]
[1755466919608,4.0349522,191.15,191.13,2.84]
[1755466919909,2.91,191.16,191.13,2.84]
[1755466920105,4.03495229,191.15,191.13,2.84]
[1755466920301,2.91,191.16,191.13,2.84]
[1755466920500,4.03480239,191.15,191.13,2.84]
[1755466920703,2.91,191.17,191.13,2.84]
[1755466920903,4.03462435,191.16,191.13,2.84]
[1755466921105,4.03462435,191.15,191.13,2.84]
[1755466921411,2.91,191.17,191.13,2.84]
[1755466921603,4.03478795,191.16,191.13,2.84]
[1755466921807,4.03478795,191.15,191.13,2.84]
[1755466922009,2.91,191.21,191.13,2.84]
[1755466922210,2.91,191.19,191.13,2.84]
[1755466922410,4.0352754,191.18,191.13,2.84]
[1755466922706,2.91,191.16,191.13,2.84]
[1755466922909,4.0352754,191.15,191.13,2.84]
[1755466923111,2.91,191.15,191.13,2.84]
[1755466924113,4.03610466,191.14,191.13,2.84]
[1755466929210,5.84897855,191.23,191.13,3.36]
[1755466929520,2.91,191.21,191.16,2.12]
[1755466929821,2.91,191.21,191.16,7.3478]
[1755466930025,2.91,191.21,191.17,2.12]
[1755466934525,2.91,191.2,191.18,2.12]
[1755466934826,2.91,191.23,191.2,2.12]
[1755466935028,2.91,191.21,191.17,5.2275]
[1755466935320,7.72847836,191.22,191.17,5.2275]
[1755466935321,2.91,191.2,191.17,5.2275]
[1755466935623,2.91,191.2,191.18,2.12]
[1755466935922,2.91,191.2,191.19,2.12]
[1755466937024,2.91,191.21,191.19,2.12]
[1755466937422,2.91,191.21,191.2,2.12]
[1755466938827,2.82,191.26,191.2,2.12]
[1755466939022,2.82,191.24,191.21,2.11]
[1755466939227,2.82,191.22,191.21,2.11]
[1755466940725,2.82,191.22,191.2,2.11]
[1755466941232,4.02867696,191.21,191.2,2.11]
[1755466941432,6.84867696,191.21,191.2,2.11]
[1755466941632,2.82,191.2,191.07,2.45625297]
[1755466941834,2.82,191.18,191.03,2.11]
[1755466942025,2.82,191.16,191.07,4.56625297]
[1755466942225,4.02867696,191.15,191.07,4.56625297]
[1755466942426,2.82,191.13,191.07,4.56625297]
[1755466942627,2.82,191.13,191.08,2.11]
[1755466944242,2.82,191.19,191.08,7.3399]
[1755466944541,2.82,191.17,191.09,2.11]
[1755466944735,4.02736436,191.16,191.09,2.11]
[1755466944934,2.82,191.14,191.09,2.11]
[1755466945128,5.84897855,191.21,191.09,2.11]
[1755466945333,2.82,191.13,191.09,7.3396]
[1755466945534,2.82,191.13,191.1,2.11]
[1755466946237,2.82,191.15,191.11,2.11]
[1755466946444,2.82,191.14,191.11,2.11]
[1755466946740,15.68,191.21,191.11,7.3392]
[1755466946939,2.82,191.13,191.12,2.11]
[1755466947139,2.82,191.16,191.12,2.11]
[1755466947334,15.68,191.21,191.13,2.11]
[1755466947335,2.82,191.14,191.13,2.11]
[1755466950543,2.82,191.21,191.13,2.11]
[1755466950739,2.82,191.19,191.13,2.11]
[1755466950940,143.14,191.23,191.13,5.2285]
[1755466950941,4.02678646,191.18,191.13,5.2285]
[1755466951145,2.82,191.16,191.15,2.11]
[1755466956150,6.85066507,191.16,191.15,2.11]
[1755466957052,4.03066507,191.16,191.13,9.79475297]
[1755466957247,2.82,191.19,191.13,7.68475297]
[1755466957552,2.82,191.17,191.14,2.11]
[1755466957848,6.84222683,191.16,191.14,2.11]
[1755466958045,2.82,191.16,191.14,2.11]
[1755466959240,2.82,191.16,191.13,7.68475297]
[1755466959446,2.82,191.16,191.15,2.11]
[1755466959646,6.84098647,191.16,191.15,2.11]
[1755466967350,6.84098647,191.16,191.13,7.68475297]
[1755466967558,2.82,191.15,191.14,2.11]
[1755466969657,2.79,191.17,191.14,7.3384]
[1755466969856,6.81159625,191.16,191.14,7.3384]
[1755466970054,2.79,191.16,191.14,7.3384]
[1755466970256,2.79,191.15,191.14,7.3384]
[1755466976360,2.79,191.15,191.14,5.2284]
[1755466980164,2.79,191.14,191.13,9.80485297]
[1755466980364,2.79,191.14,191.13,8.92070293]
[1755466987173,6.8161072,191.14,191.13,8.92070293]
[1755466989878,6.8161072,191.14,191.13,6.80070293]
[1755466991566,6.8161072,191.14,191.13,8.92070293]
[1755466995581,2.79,191.18,191.15,5.228]
[1755466995769,2.79,191.17,191.16,3.69210293]
[1755466995973,2.79,191.17,191.16,1.57210293]
[1755467000277,2.79,191.17,191.16,3.69210293]
[1755467000477,5.84897855,191.24,191.16,6.79990293]
[1755467000679,7.69870568,191.23,191.19,1.57210293]
[1755467000980,7.69870568,191.22,191.19,1.57210293]
[1755467001168,5.84897855,191.25,191.19,1.57210293]
[1755467001480,7.69842464,191.24,191.19,1.57210293]
[1755467001783,7.69842464,191.23,191.19,1.57210293]
[1755467002077,7.69842464,191.22,191.19,1.57210293]
[1755467002268,4.59414731,191.21,191.19,1.57210293]
[1755467002470,2.78,191.2,191.19,1.57210293]
[1755467005385,2.78,191.2,191.18,1.57210293]
[1755467006382,2.78,191.24,191.19,2.93]
[1755467006683,2.78,191.22,191.2,2.93]
[1755467006876,2.78,191.2,191.19,2.93]
[1755467007682,6.79098282,191.2,191.19,2.93]
[1755467013094,4.01098282,191.2,191.19,2.93]
[1755467013483,6.79098282,191.2,191.19,2.93]
[1755467022192,2.78,191.2,191.19,2.93]
[1755467027104,2.78,191.2,191.19,8.157]
[1755467027504,5.84897855,191.3,191.2,2.93]
[1755467027705,2.87,191.28,191.26,1.57210293]
[1755467027901,7.42108148,191.33,191.26,1.57210293]
[1755467027902,6.86480072,191.27,191.26,1.57210293]
[1755467028301,2.87,191.27,191.25,4.58210293]
[1755467028703,2.87,191.36,191.26,3.01]